[Event "EYCC Girls-U12 2019"]
[Site "Bratislava"]
[Date "2019.08.07"]
[Round "6.5"]
[White "Nordquelle, Amelia"]
[Black "Zhapova, Yana"]
[Result "0-1"]
[ECO "D02"]
[WhiteElo "1648"]
[BlackElo "1809"]
[Annotator "NA"]
[PlyCount "42"]
[EventDate "2019.08.02"]
[EventType "swiss"]
[EventCountry "SVK"]
[SourceTitle "playchess.com"]
[Source "ChessBase"]
[SourceQuality "1"]
[TimeControl "40/5400+30:1800+30"]

1. d4 {[%emt 0:00:35]} d5 {[%emt 0:00:00]} 2. Nf3 {[%emt 0:00:45]} e6 {[%emt 0:02:19]} 3. c4 {[%emt 0:00:24]} Nf6 {[%emt 0:00:43]} 4. g3 {[%emt 0:03:59]} dxc4 {[%emt 0:05:19]} 5. Qc2 {[%emt 0:05:03]} c5 {[%emt 0:16:51]} 6. Qxc4 {[%emt 0:04:08]} Nbd7 {[%emt 0:02:38]} 7. Bg2 {[%emt 0:09:47]} Be7 {[%emt 0:08:23]} 8. O-O {[%emt 0:04:09]} O-O {[%emt 0:00:35]} 9. Nc3 {[%emt 0:06:37]} a6 {[%emt 0:02:12]} 10. a4 {[%emt 0:05:54]} cxd4 {[%emt 0:07:05]} 11. Qxd4 {[%emt 0:03:23]} Bc5 {[%emt 0:00:28]} 12. Qd3 {[%emt 0:05:02]} Qe7 {[%emt 0:01:34]} 13. e4 {[%emt 0:01:53]} Rd8 {[%emt 0:08:02]} 14. Qe2 {[%emt 0:05:25]} e5 {[%emt 0:08:56]} 15. Nd5 {[%emt 0:12:29]} Nxd5 {[%emt 0:00:26]} 16. exd5 {[%emt 0:00:09]} f6 {[%emt 0:03:26]} 17. a5 {[%emt 0:02:01]} Nf8 {[%emt 0:07:56]} 18. Qc4 {[%emt 0:01:36]} Bd6 {[%emt 0:01:24]} 19. Re1 {[%emt 0:07:27]} Bd7 {[%emt 0:01:49]} 20. Qb3 {[%emt 0:00:31]} Qf7 {[%emt 0:00:53]} 21. Qxb7 {[%emt 0:04:55]} Rdb8 {[%emt 0:01:12]} 0-1

[Event "EYCC Girls-U12 2019"]
[Site "Bratislava"]
[Date "2019.08.07"]
[Round "6.6"]
[White "Schippke, Manon"]
[Black "Musabayeva, Diana"]
[Result "0-1"]
[ECO "B50"]
[WhiteElo "1743"]
[BlackElo "1679"]
[Annotator "NA"]
[PlyCount "66"]
[EventDate "2019.08.02"]
[EventType "swiss"]
[EventCountry "SVK"]
[SourceTitle "playchess.com"]
[Source "ChessBase"]
[SourceQuality "1"]
[TimeControl "40/5400+30:1800+30"]

1. e4 {[%emt 0:00:00]} c5 {[%emt 0:00:00]} 2. Nf3 {[%emt 0:00:04]} d6 {[%emt 0:00:00]} 3. g3 {[%emt 0:00:32]} Nf6 {[%emt 0:00:00]} 4. d3 {[%emt 0:00:28]} g6 {[%emt 0:00:27]} 5. Bg2 {[%emt 0:00:29]} Bg7 {[%emt 0:00:28]} 6. O-O {[%emt 0:00:56]} O-O {[%emt 0:00:36]} 7. Re1 {[%emt 0:02:06]} Nc6 {[%emt 0:01:00]} 8. c3 {[%emt 0:01:02]} e5 {[%emt 0:00:09]} 9. a3 {[%emt 0:01:24]} a5 {[%emt 0:01:12]} 10. a4 {[%emt 0:01:11]} h6 {[%emt 0:03:31]} 11. Na3 {[%emt 0:01:47]} Be6 {[%emt 0:01:31]} 12. Nb5 {[%emt 0:05:34]} Re8 {[%emt 0:19:08]} 13. c4 {[%emt 0:12:34]} Qd7 {[%emt 0:19:01]} 14. Nd2 {[%emt 0:04:16]} Nb4 {[%emt 0:03:49]} 15. Nf1 {[%emt 0:05:17]} Nh7 {[%emt 0:04:53]} 16. Ne3 {[%emt 0:04:28]} Rad8 {[%emt 0:08:09]} 17. Nd5 {[%emt 0:03:14]} Bxd5 {[%emt 0:04:17]} 18. cxd5 {[%emt 0:01:24]} f5 {[%emt 0:06:39]} 19. exf5 {[%emt 0:04:22]} gxf5 {[%emt 0:03:16]} 20. Re3 {[%emt 0:03:07]} Qf7 {[%emt 0:02:44]} 21. Bd2 {[%emt 0:05:02]} Bf8 {[%emt 0:04:49]} 22. Bxb4 {[%emt 0:02:05]} axb4 {[%emt 0:01:15]} 23. Qe2 {[%emt 0:10:14]} b6 {[%emt 0:02:29]} 24. h4 {[%emt 0:03:19]} Nf6 {[%emt 0:01:35]} 25. Rf1 {[%emt 0:10:03]} Rd7 {[%emt 0:03:36]} 26. Qf3 {[%emt 0:02:05]} Ng4 {[%emt 0:00:43]} 27. Ree1 {[%emt 0:00:43]} h5 {[%emt 0:01:49]} 28. Bh3 {[%emt 0:01:25]} Nh6 {[%emt 0:00:56]} 29. Qe3 {[%emt 0:04:44]} Rdd8 {[%emt 0:02:31]} 30. Qg5+ {[%emt 0:01:15]} Kh7 {[%emt 0:00:31]} 31. Bg2 {[%emt 0:00:45]} Ng4 {[%emt 0:00:43]} 32. Bf3 {[%emt 0:00:59]} Bh6 {[%emt 0:00:14]} 33. Bxg4 {[%emt 0:02:19]} Bxg5 {[%emt 0:00:10]} 0-1

[Event "EYCC Girls-U12 2019"]
[Site "Bratislava"]
[Date "2019.08.07"]
[Round "6.7"]
[White "Fileru, Maria"]
[Black "Van, Foreest Machteld"]
[Result "0-1"]
[ECO "E20"]
[WhiteElo "1602"]
[BlackElo "2186"]
[Annotator "NA"]
[PlyCount "118"]
[EventDate "2019.08.02"]
[EventType "swiss"]
[EventCountry "SVK"]
[SourceTitle "playchess.com"]
[Source "ChessBase"]
[SourceQuality "1"]
[TimeControl "40/5400+30:1800+30"]

1. d4 {[%emt 0:00:00]} Nf6 {[%emt 0:00:00]} 2. c4 {[%emt 0:00:00]} e6 {[%emt 0:00:00]} 3. Nc3 {[%emt 0:00:00]} Bb4 {[%emt 0:00:00]} 4. f3 {[%emt 0:00:00]} O-O {[%emt 0:00:00]} 5. a3 {[%emt 0:00:00]} Bxc3+ {[%emt 0:00:03]} 6. bxc3 {[%emt 0:00:02]} Ne8 {[%emt 0:01:28]} 7. e4 {[%emt 0:01:31]} b6 {[%emt 0:00:39]} 8. Nh3 {[%emt 0:00:58]} Ba6 {[%emt 0:02:23]} 9. Bd3 {[%emt 0:02:10]} Nc6 {[%emt 0:07:01]} 10. Qe2 {[%emt 0:04:37]} e5 {[%emt 0:11:44]} 11. Be3 {[%emt 0:01:11]} Qe7 {[%emt 0:06:06]} 12. O-O {[%emt 0:04:04]} Nd6 {[%emt 0:17:42]} 13. f4 {[%emt 0:17:40]} exd4 {[%emt 0:02:19]} 14. Bxd4 {[%emt 0:02:59]} f5 {[%emt 0:02:56]} 15. e5 {[%emt 0:02:31]} Nb7 {[%emt 0:02:52]} 16. g4 {[%emt 0:07:37]} Qh4 {[%emt 0:11:14]} 17. Nf2 {[%emt 0:02:06]} Nba5 {[%emt 0:01:33]} 18. Bxf5 {[%emt 0:07:07]} Bxc4 {[%emt 0:04:32]} 19. Nd3 {[%emt 0:15:28]} Nxd4 {[%emt 0:06:40]} 20. cxd4 {[%emt 0:00:02]} Nb3 {[%emt 0:00:39]} 21. Rad1 {[%emt 0:01:51]} Nxd4 {[%emt 0:03:32]} 22. Qe4 {[%emt 0:03:29]} Bxd3 {[%emt 0:03:38]} 23. Rxd3 {[%emt 0:00:56]} Nxf5 {[%emt 0:00:11]} 24. gxf5 {[%emt 0:00:04]} Qg4+ {[%emt 0:00:50]} 25. Kh1 {[%emt 0:01:07]} Qxf5 {[%emt 0:01:55]} 26. Qd5+ {[%emt 0:00:21]} Qe6 {[%emt 0:05:53]} 27. Qxd7 {[%emt 0:00:51]} Qxd7 {[%emt 0:00:02]} 28. Rxd7 {[%emt 0:00:02]} Rf7 {[%emt 0:01:09]} 29. Rfd1 {[%emt 0:05:23]} Rxd7 {[%emt 0:00:07]} 30. Rxd7 {[%emt 0:00:01]} c5 {[%emt 0:01:19]} 31. Kg2 {[%emt 0:01:04]} b5 {[%emt 0:02:41]} 32. Kf3 {[%emt 0:03:08]} c4 {[%emt 0:02:09]} 33. Rc7 {[%emt 0:00:49]} a6 {[%emt 0:02:11]} 34. Ke4 {[%emt 0:00:25]} g6 {[%emt 0:00:49]} 35. e6 {[%emt 0:00:14]} a5 {[%emt 0:00:38]} 36. Ke5 {[%emt 0:02:34]} Rb8 {[%emt 0:00:31]} 37. Kd6 {[%emt 0:01:01]} b4 38. axb4 {[%emt 0:04:31]} axb4 {[%emt 0:00:26]} 39. Rxc4 {[%emt 0:05:23]} b3 {[%emt 0:00:08]} 40. Rc1 {[%emt 0:00:00]} b2 {[%emt 0:00:00]} 41. Rb1 {[%emt 0:00:18]} Rb3 {[%emt 0:01:21]} 42. Kd7 {[%emt 0:04:43]} Rb7+ {[%emt 0:12:55]} 43. Kc6 {[%emt 0:02:51]} Rb3 {[%emt 0:02:41]} 44. Kd7 {[%emt 0:01:00]} Kg7 {[%emt 0:00:57]} 45. e7 {[%emt 0:06:34]} Rd3+ {[%emt 0:00:06]} 46. Ke6 {[%emt 0:01:23]} Re3+ {[%emt 0:00:09]} 47. Kd6 {[%emt 0:01:11]} Kf6 {[%emt 0:00:57]} 48. Rxb2 {[%emt 0:00:10]} Rxe7 {[%emt 0:00:35]} 49. Kd5 {[%emt 0:05:18]} Kf5 {[%emt 0:00:12]} 50. Rb4 {[%emt 0:00:33]} h5 {[%emt 0:00:38]} 51. h3 {[%emt 0:00:12]} h4 {[%emt 0:00:49]} 52. Ra4 {[%emt 0:00:32]} Rd7+ {[%emt 0:00:09]} 53. Kc6 {[%emt 0:00:09]} Rd3 {[%emt 0:00:15]} 54. Ra5+ {[%emt 0:00:22]} Kxf4 {[%emt 0:00:21]} 55. Ra4+ {[%emt 0:00:02]} Kg5 {[%emt 0:00:08]} 56. Rg4+ {[%emt 0:00:05]} Kh5 {[%emt 0:00:02]} 57. Rg1 {[%emt 0:00:14]} Rxh3 {[%emt 0:00:25]} 58. Kd5 {[%emt 0:00:03]} Re3 {[%emt 0:00:05]} 59. Kd4 {[%emt 0:00:14]} Re6 {[%emt 0:00:11]} 0-1

[Event "EYCC Girls-U12 2019"]
[Site "Bratislava"]
[Date "2019.08.07"]
[Round "6.8"]
[White "Huang, Wendy"]
[Black "Komissarova, Soigina"]
[Result "1-0"]
[ECO "C50"]
[WhiteElo "1784"]
[BlackElo "1663"]
[Annotator "NA"]
[PlyCount "151"]
[EventDate "2019.08.02"]
[EventType "swiss"]
[EventCountry "SVK"]
[SourceTitle "playchess.com"]
[Source "ChessBase"]
[SourceQuality "1"]
[TimeControl "40/5400+30:1800+30"]

1. e4 {[%emt 0:00:00]} e5 {[%emt 0:00:00]} 2. Nf3 {[%emt 0:00:00]} Nc6 {[%emt 0:00:00]} 3. Bc4 {[%emt 0:00:00]} Nf6 {[%emt 0:00:20]} 4. d3 {[%emt 0:01:13]} Bc5 {[%emt 0:01:05]} 5. c3 {[%emt 0:00:10]} d6 {[%emt 0:02:01]} 6. Nbd2 {[%emt 0:00:08]} Be6 {[%emt 0:01:41]} 7. O-O {[%emt 0:02:10]} h6 {[%emt 0:01:42]} 8. Bb3 {[%emt 0:03:54]} Bb6 {[%emt 0:18:51]} 9. Nc4 {[%emt 0:05:56]} O-O {[%emt 0:03:15]} 10. Re1 {[%emt 0:06:44]} Bxc4 {[%emt 0:04:57]} 11. Bxc4 {[%emt 0:00:27]} Na5 {[%emt 0:00:35]} 12. Bb5 {[%emt 0:02:45]} a6 {[%emt 0:07:40]} 13. Ba4 {[%emt 0:00:14]} Ba7 {[%emt 0:08:23]} 14. Qe2 {[%emt 0:14:55]} b5 {[%emt 0:01:10]} 15. Bc2 {[%emt 0:00:47]} c5 {[%emt 0:01:39]} 16. Nh4 {[%emt 0:08:28]} Re8 {[%emt 0:04:32]} 17. Nf5 {[%emt 0:09:08]} Kh7 {[%emt 0:16:14]} 18. Qf3 {[%emt 0:05:05]} Nc6 {[%emt 0:15:32]} 19. Qg3 {[%emt 0:04:49]} Rg8 {[%emt 0:01:15]} 20. Qh3 {[%emt 0:02:05]} Qf8 {[%emt 0:03:11]} 21. Bg5 {[%emt 0:19:52]} Nd8 {[%emt 0:01:08]} 22. Nxh6 {[%emt 0:02:53]} gxh6 {[%emt 0:00:12]} 23. Qf5+ {[%emt 0:00:37]} Rg6 {[%emt 0:00:15]} 24. Bxf6 {[%emt 0:00:12]} Ne6 {[%emt 0:01:09]} 25. Re3 {[%emt 0:04:23]} Nf4 {[%emt 0:00:39]} 26. g3 {[%emt 0:00:17]} Nh5 {[%emt 0:01:32]} 27. Bxe5 {[%emt 0:01:03]} dxe5 {[%emt 0:00:45]} 28. Qxh5 {[%emt 0:00:07]} Rg5 {[%emt 0:00:17]} 29. Qf3 {[%emt 0:00:18]} Qg7 {[%emt 0:00:56]} 30. Kh1 {[%emt 0:02:59]} Re8 {[%emt 0:00:30]} 31. c4 Re6 {[%emt 0:00:32]} 32. Qg2 {[%emt 0:01:29]} Bb8 {[%emt 0:00:51]} 33. h4 {[%emt 0:00:53]} Rgg6 {[%emt 0:00:41]} 34. Bd1 {[%emt 0:00:48]} Bc7 {[%emt 0:00:55]} 35. Bh5 {[%emt 0:00:21]} Rgf6 {[%emt 0:00:09]} 36. Rf3 {[%emt 0:00:36]} Rxf3 {[%emt 0:00:14]} 37. Qxf3 {[%emt 0:00:26]} Rf6 {[%emt 0:00:05]} 38. Qe2 {[%emt 0:00:42]} Bd8 {[%emt 0:01:09]} 39. Rd1 {[%emt 0:01:02]} Rd6 {[%emt 0:00:57]} 40. Qg4 {[%emt 0:00:00]} Qxg4 {[%emt 0:00:00]} 41. Bxg4 {[%emt 0:01:17]} bxc4 {[%emt 0:01:20]} 42. dxc4 {[%emt 0:00:20]} Rxd1+ {[%emt 0:00:04]} 43. Bxd1 {[%emt 0:00:08]} Bc7 {[%emt 0:00:29]} 44. Kg2 {[%emt 0:00:36]} Kg6 {[%emt 0:00:24]} 45. Bg4 {[%emt 0:01:13]} Kf6 {[%emt 0:03:22]} 46. Kf3 {[%emt 0:01:01]} Ke7 {[%emt 0:01:13]} 47. Bc8 {[%emt 0:01:59]} a5 {[%emt 0:00:25]} 48. Bb7 {[%emt 0:02:03]} f6 {[%emt 0:05:39]} 49. h5 {[%emt 0:01:45]} a4 {[%emt 0:05:15]} 50. a3 {[%emt 0:04:56]} Ba5 {[%emt 0:01:26]} 51. Ke2 {[%emt 0:01:57]} Kd6 {[%emt 0:00:31]} 52. Ba6 {[%emt 0:00:29]} Ke6 {[%emt 0:00:36]} 53. g4 {[%emt 0:01:51]} Kd6 {[%emt 0:00:57]} 54. Bb5 {[%emt 0:00:14]} Ke7 {[%emt 0:01:47]} 55. Bxa4 {[%emt 0:00:29]} Kd6 {[%emt 0:00:12]} 56. Bb5 {[%emt 0:01:29]} Ke6 {[%emt 0:00:53]} 57. f3 {[%emt 0:01:52]} Kd6 {[%emt 0:01:27]} 58. Kd3 {[%emt 0:01:33]} Kc7 {[%emt 0:01:13]} 59. Kc2 {[%emt 0:00:21]} Kb6 {[%emt 0:00:52]} 60. Kb3 {[%emt 0:00:21]} Bd2 {[%emt 0:01:36]} 61. Ka4 {[%emt 0:00:48]} Be1 {[%emt 0:00:36]} 62. b4 {[%emt 0:00:41]} Bd2 {[%emt 0:00:29]} 63. Bd7 {[%emt 0:02:36]} Bc3 {[%emt 0:00:35]} 64. Kb3 {[%emt 0:02:25]} Be1 {[%emt 0:01:15]} 65. Be6 {[%emt 0:02:04]} Kc6 {[%emt 0:02:13]} 66. Bd5+ {[%emt 0:00:28]} Kb6 {[%emt 0:00:12]} 67. f4 {[%emt 0:09:00]} exf4 {[%emt 0:06:25]} 68. e5 {[%emt 0:00:13]} fxe5 {[%emt 0:00:15]} 69. g5 {[%emt 0:01:02]} Bh4 {[%emt 0:00:09]} 70. gxh6 {[%emt 0:00:14]} Bf6 {[%emt 0:00:18]} 71. h7 {[%emt 0:00:38]} Bh8 {[%emt 0:00:29]} 72. Kc2 {[%emt 0:00:17]} cxb4 {[%emt 0:01:26]} 73. axb4 {[%emt 0:00:07]} Kc7 {[%emt 0:00:15]} 74. Kd3 {[%emt 0:00:15]} Kd7 {[%emt 0:00:39]} 75. b5 {[%emt 0:00:21]} Kd6 76. Ke4 {Kxd5+} 1-0

[Event "EYCC Girls-U12 2019"]
[Site "Bratislava"]
[Date "2019.08.07"]
[Round "6.9"]
[White "Denic, Hana"]
[Black "Buyuk, Ecrin Efsa"]
[Result "1/2-1/2"]
[ECO "B19"]
[WhiteElo "1821"]
[BlackElo "1592"]
[Annotator "NA"]
[PlyCount "66"]
[EventDate "2019.08.02"]
[EventType "swiss"]
[EventCountry "SVK"]
[SourceTitle "playchess.com"]
[Source "ChessBase"]
[SourceQuality "1"]
[TimeControl "40/5400+30:1800+30"]

1. e4 {[%emt 0:00:00]} c6 {[%emt 0:00:00]} 2. d4 {[%emt 0:00:00]} d5 {[%emt 0:00:00]} 3. Nc3 {[%emt 0:00:17]} dxe4 {[%emt 0:00:04]} 4. Nxe4 {[%emt 0:00:09]} Bf5 {[%emt 0:00:09]} 5. Ng3 {[%emt 0:00:33]} Bg6 {[%emt 0:00:06]} 6. h4 {[%emt 0:00:44]} h6 {[%emt 0:00:28]} 7. Nf3 {[%emt 0:00:47]} Nd7 {[%emt 0:00:24]} 8. h5 {[%emt 0:01:01]} Bh7 {[%emt 0:00:12]} 9. Bd3 {[%emt 0:00:48]} Bxd3 {[%emt 0:01:17]} 10. Qxd3 {[%emt 0:02:30]} e6 {[%emt 0:00:21]} 11. Bd2 {[%emt 0:01:59]} Ngf6 {[%emt 0:00:28]} 12. O-O-O {[%emt 0:03:50]} Be7 {[%emt 0:00:57]} 13. Kb1 {[%emt 0:01:05]} O-O {[%emt 0:02:14]} 14. Ne4 {[%emt 0:03:25]} Nxe4 {[%emt 0:00:32]} 15. Qxe4 {[%emt 0:00:15]} Nf6 {[%emt 0:00:08]} 16. Qe2 {[%emt 0:01:43]} Qd5 {[%emt 0:01:26]} 17. Ne5 {[%emt 0:03:26]} Qe4 {[%emt 0:01:11]} 18. Qxe4 {[%emt 0:01:38]} Nxe4 {[%emt 0:00:02]} 19. Be1 {[%emt 0:01:53]} Rad8 {[%emt 0:02:40]} 20. f3 {[%emt 0:06:18]} Nf6 {[%emt 0:04:43]} 21. Bf2 {[%emt 0:10:53]} Nd7 {[%emt 0:22:59]} 22. Nc4 {[%emt 0:07:08]} Nb6 {[%emt 0:09:38]} 23. Nxb6 {[%emt 0:10:30]} axb6 {[%emt 0:00:02]} 24. Rd3 {[%emt 0:00:56]} Rd7 {[%emt 0:02:34]} 25. Rhd1 {[%emt 0:03:20]} b5 {[%emt 0:02:13]} 26. b3 {[%emt 0:04:39]} Rd5 {[%emt 0:06:04]} 27. g4 {[%emt 0:03:52]} b4 {[%emt 0:00:13]} 28. Re1 {[%emt 0:04:13]} Bf6 {[%emt 0:04:27]} 29. Re4 {[%emt 0:04:35]} Rfd8 {[%emt 0:10:45]} 30. f4 {[%emt 0:08:48]} Kh7 {[%emt 0:10:13]} 31. Be1 {[%emt 0:04:21]} Rb5 {[%emt 0:00:57]} 32. Bd2 {[%emt 0:04:28]} Kg8 {[%emt 0:02:20]} 33. Be1 {[%emt 0:02:12]} Kh7 {[%emt 0:00:13]} 1/2-1/2

[Event "EYCC Girls-U12 2019"]
[Site "Bratislava"]
[Date "2019.08.07"]
[Round "6.10"]
[White "Gadasi, Noam"]
[Black "Siekanska, Maria"]
[Result "1-0"]
[ECO "B81"]
[WhiteElo "1585"]
[BlackElo "1561"]
[Annotator "NA"]
[PlyCount "67"]
[EventDate "2019.08.02"]
[EventType "swiss"]
[EventCountry "SVK"]
[SourceTitle "playchess.com"]
[Source "ChessBase"]
[SourceQuality "1"]
[TimeControl "40/5400+30:1800+30"]

1. e4 {[%emt 0:00:00]} c5 {[%emt 0:00:00]} 2. Nf3 {[%emt 0:00:00]} e6 {[%emt 0:00:00]} 3. d4 {[%emt 0:00:13]} cxd4 {[%emt 0:00:00]} 4. Nxd4 {[%emt 0:00:11]} Nf6 {[%emt 0:00:08]} 5. Nc3 {[%emt 0:00:19]} d6 {[%emt 0:00:14]} 6. g4 {[%emt 0:06:56]} Nc6 {[%emt 0:00:07]} 7. g5 {[%emt 0:01:05]} Nd7 {[%emt 0:00:10]} 8. Be3 {[%emt 0:01:21]} Be7 {[%emt 0:00:44]} 9. h4 {[%emt 0:00:36]} O-O {[%emt 0:00:45]} 10. Qh5 {[%emt 0:07:57]} a6 {[%emt 0:01:24]} 11. O-O-O {[%emt 0:01:40]} Nxd4 {[%emt 0:01:42]} 12. Bxd4 {[%emt 0:00:19]} b5 {[%emt 0:02:20]} 13. f4 {[%emt 0:03:53]} b4 {[%emt 0:02:18]} 14. Bxg7 {[%emt 0:05:22]} Kxg7 {[%emt 0:00:55]} 15. e5 {[%emt 0:01:39]} Nc5 {[%emt 0:06:36]} 16. Na4 {[%emt 0:01:57]} Ne4 {[%emt 0:24:05]} 17. Qh6+ {[%emt 0:03:55]} Kh8 {[%emt 0:02:35]} 18. Bd3 {[%emt 0:07:32]} Bb7 {[%emt 0:01:03]} 19. Rhe1 {[%emt 0:00:40]} Rg8 {[%emt 0:02:09]} 20. Bxe4 {[%emt 0:06:12]} Bxe4 {[%emt 0:00:25]} 21. Rxe4 {[%emt 0:00:54]} Rc8 {[%emt 0:09:27]} 22. b3 {[%emt 0:04:47]} Rc6 {[%emt 0:09:13]} 23. Red4 {[%emt 0:26:27]} Qc8 {[%emt 0:10:41]} 24. R1d2 {[%emt 0:01:51]} dxe5 {[%emt 0:00:44]} 25. fxe5 {[%emt 0:00:35]} Qc7 {[%emt 0:03:01]} 26. Re4 {[%emt 0:05:07]} Rd8 {[%emt 0:05:35]} 27. Ree2 {[%emt 0:05:16]} Rc8 {[%emt 0:05:16]} 28. Qh5 {[%emt 0:01:50]} Bc5 {[%emt 0:03:09]} 29. Nxc5 {[%emt 0:02:23]} Rxc5 {[%emt 0:00:16]} 30. Qf3 {[%emt 0:00:09]} Qa5 {[%emt 0:02:22]} 31. Qxf7 {[%emt 0:02:36]} R5c7 {[%emt 0:05:51]} 32. Qf6+ {[%emt 0:00:21]} Rg7 {[%emt 0:01:28]} 33. Rd7 {[%emt 0:00:32]} Rcg8 {[%emt 0:00:07]} 34. Kb1 {[%emt 0:00:29]} 1-0

[Event "EYCC Girls-U12 2019"]
[Site "Bratislava"]
[Date "2019.08.07"]
[Round "6.11"]
[White "Putar, Lara"]
[Black "Berezovsky, Fiorina"]
[Result "1-0"]
[ECO "A35"]
[WhiteElo "1608"]
[BlackElo "1591"]
[Annotator "NA"]
[PlyCount "79"]
[EventDate "2019.08.02"]
[EventType "swiss"]
[EventCountry "SVK"]
[SourceTitle "playchess.com"]
[Source "ChessBase"]
[SourceQuality "1"]
[TimeControl "40/5400+30:1800+30"]

1. c4 {[%emt 0:00:00]} c5 {[%emt 0:00:00]} 2. Nc3 {[%emt 0:00:00]} Nc6 {[%emt 0:02:42]} 3. Nf3 {[%emt 0:00:17]} g6 {[%emt 0:00:35]} 4. e3 {[%emt 0:01:01]} Bg7 {[%emt 0:01:33]} 5. d4 {[%emt 0:00:38]} cxd4 {[%emt 0:03:41]} 6. exd4 {[%emt 0:00:11]} d6 {[%emt 0:02:53]} 7. Be2 {[%emt 0:02:44]} e6 {[%emt 0:04:01]} 8. O-O {[%emt 0:01:22]} d5 {[%emt 0:03:09]} 9. cxd5 {[%emt 0:05:04]} exd5 {[%emt 0:00:14]} 10. Re1 {[%emt 0:01:18]} Nge7 {[%emt 0:01:24]} 11. Bg5 {[%emt 0:03:17]} O-O {[%emt 0:08:04]} 12. Bb5 {[%emt 0:00:49]} f6 {[%emt 0:01:08]} 13. Bf4 {[%emt 0:02:11]} Bg4 {[%emt 0:06:45]} 14. Be2 {[%emt 0:04:50]} g5 {[%emt 0:04:38]} 15. Be3 {[%emt 0:02:23]} Nf5 {[%emt 0:05:10]} 16. h3 {[%emt 0:03:10]} Nxe3 {[%emt 0:01:00]} 17. fxe3 {[%emt 0:00:10]} Be6 {[%emt 0:03:37]} 18. Nd2 {[%emt 0:05:26]} f5 {[%emt 0:02:13]} 19. Nb3 {[%emt 0:03:34]} b6 {[%emt 0:03:30]} 20. Bf3 {[%emt 0:00:43]} Qd7 {[%emt 0:03:00]} 21. g4 {[%emt 0:07:43]} fxg4 {[%emt 0:06:35]} 22. Bxg4 {[%emt 0:00:10]} Rf6 {[%emt 0:02:41]} 23. Bxe6+ {[%emt 0:01:24]} Qxe6 {[%emt 0:02:27]} 24. Qg4 {[%emt 0:00:52]} Qf7 {[%emt 0:02:36]} 25. Rf1 {[%emt 0:02:46]} Rf8 {[%emt 0:05:08]} 26. Rxf6 {[%emt 0:01:30]} Bxf6 {[%emt 0:00:57]} 27. Rf1 {[%emt 0:01:49]} Ne7 {[%emt 0:01:59]} 28. Qg2 {[%emt 0:04:19]} Qe6 {[%emt 0:01:15]} 29. e4 {[%emt 0:02:33]} dxe4 {[%emt 0:02:54]} 30. Nxe4 {[%emt 0:00:18]} h6 {[%emt 0:01:23]} 31. h4 {[%emt 0:05:49]} Qc6 {[%emt 0:04:18]} 32. hxg5 {[%emt 0:02:37]} hxg5 {[%emt 0:00:53]} 33. d5 {[%emt 0:02:22]} Bd4+ {[%emt 0:06:45]} 34. Nxd4 {[%emt 0:00:39]} Rxf1+ {[%emt 0:00:49]} 35. Qxf1 {[%emt 0:00:35]} Qg6 {[%emt 0:01:00]} 36. Nf6+ {[%emt 0:01:18]} Kg7 {[%emt 0:01:23]} 37. Ne6+ {[%emt 0:00:21]} Kf7 {[%emt 0:00:32]} 38. Nh7+ {[%emt 0:01:46]} Ke8 {[%emt 0:02:39]} 39. Qf8+ {[%emt 0:00:11]} Kd7 {[%emt 0:00:16]} 40. Qd8# {[%emt 0:00:00]} 1-0

[Event "EYCC Girls-U12 2019"]
[Site "Bratislava"]
[Date "2019.08.07"]
[Round "6.12"]
[White "Tran, Alva Ling"]
[Black "Helliesen, Lykke-Merlot"]
[Result "1-0"]
[ECO "B25"]
[WhiteElo "1712"]
[BlackElo "1505"]
[Annotator "NA"]
[PlyCount "63"]
[EventDate "2019.08.02"]
[EventType "swiss"]
[EventCountry "SVK"]
[SourceTitle "playchess.com"]
[Source "ChessBase"]
[SourceQuality "1"]
[TimeControl "40/5400+30:1800+30"]

1. e4 {[%emt 0:00:00]} c5 {[%emt 0:00:00]} 2. Nc3 {[%emt 0:00:00]} d6 {[%emt 0:00:00]} 3. g3 {[%emt 0:00:20]} Nc6 {[%emt 0:00:00]} 4. Bg2 {[%emt 0:00:11]} g6 {[%emt 0:00:02]} 5. d3 {[%emt 0:00:34]} Bg7 {[%emt 0:00:08]} 6. f4 {[%emt 0:00:50]} e6 {[%emt 0:00:18]} 7. Nf3 {[%emt 0:00:12]} Nge7 {[%emt 0:00:18]} 8. O-O {[%emt 0:00:17]} O-O {[%emt 0:00:07]} 9. Be3 {[%emt 0:00:36]} b6 {[%emt 0:00:18]} 10. Qd2 {[%emt 0:01:37]} Ba6 {[%emt 0:02:53]} 11. Rf2 {[%emt 0:03:44]} d5 {[%emt 0:04:59]} 12. exd5 {[%emt 0:02:04]} exd5 {[%emt 0:01:33]} 13. d4 {[%emt 0:09:16]} Nf5 {[%emt 0:14:09]} 14. Ne2 {[%emt 0:18:15]} Bxe2 {[%emt 0:12:55]} 15. Rxe2 {[%emt 0:00:57]} Nxe3 {[%emt 0:06:27]} 16. Rxe3 {[%emt 0:01:53]} Nxd4 {[%emt 0:02:33]} 17. Ne5 {[%emt 0:13:52]} Rc8 {[%emt 0:05:03]} 18. Rd3 {[%emt 0:08:43]} Qe8 {[%emt 0:25:50]} 19. Re1 {[%emt 0:04:48]} Qa4 {[%emt 0:07:58]} 20. c3 {[%emt 0:02:00]} Nf5 {[%emt 0:02:21]} 21. Bxd5 {[%emt 0:01:44]} c4 {[%emt 0:01:51]} 22. b3 {[%emt 0:09:25]} cxb3 {[%emt 0:00:23]} 23. axb3 {[%emt 0:00:06]} Qb5 {[%emt 0:00:24]} 24. c4 {[%emt 0:04:36]} Qc5+ {[%emt 0:00:47]} 25. Kg2 {[%emt 0:02:37]} Ne7 {[%emt 0:03:23]} 26. Nd7 {[%emt 0:01:35]} Qc7 {[%emt 0:02:59]} 27. Nxf8 {[%emt 0:02:36]} Kxf8 {[%emt 0:00:25]} 28. Bf3 {[%emt 0:00:59]} Nf5 {[%emt 0:02:28]} 29. Rd7 {[%emt 0:01:40]} Qb8 {[%emt 0:01:25]} 30. Rb7 {[%emt 0:01:59]} Qd6 {[%emt 0:00:24]} 31. Bd5 {[%emt 0:01:06]} Nd4 32. Rxf7+ {[%emt 0:01:02]} 1-0